[Event "GrandPrix_29.05"]
[Site "Chess.com"]
[Date "2020.05.29"]
[Round "2"]
[White "VerdeNotte"]
[Black "Meri-Arabidze"]
[Result "1-0"]
[WhiteElo "2604"]
[BlackElo "2131"]
[TimeControl "600+2"]
[EndTime "9:58:16 PDT"]
[Termination "VerdeNotte won on time"]

1. e4 {[%clk 0:10:00.8]} 1... c5 {[%clk 0:09:58.8]} 2. Nc3 {[%clk 0:10:00.6]}
2... e6 {[%clk 0:09:57.2]} 3. Nf3 {[%clk 0:10:01.1]} 3... a6 {[%clk 0:09:57.7]}
4. g3 {[%clk 0:10:00.1]} 4... d5 {[%clk 0:09:58.4]} 5. exd5 {[%clk 0:09:58.7]}
5... exd5 {[%clk 0:09:59.4]} 6. d4 {[%clk 0:09:58.6]} 6... Nf6 {[%clk
0:09:49.6]} 7. Bg2 {[%clk 0:09:59.1]} 7... cxd4 {[%clk 0:09:41.6]} 8. Nxd4
{[%clk 0:09:58.8]} 8... Be7 {[%clk 0:09:38.2]} 9. O-O {[%clk 0:09:54.8]} 9...
O-O {[%clk 0:09:38.2]} 10. Qd3 {[%clk 0:09:26.8]} 10... Nc6 {[%clk 0:09:01.9]}
11. Bf4 {[%clk 0:09:10.9]} 11... Nxd4 {[%clk 0:08:35.2]} 12. Qxd4 {[%clk
0:09:10.8]} 12... Be6 {[%clk 0:08:36.8]} 13. Rad1 {[%clk 0:09:01.1]} 13... Rc8
{[%clk 0:08:34.3]} 14. Nxd5 {[%clk 0:08:21.1]} 14... Nxd5 {[%clk 0:07:50.8]} 15.
Bxd5 {[%clk 0:08:20.6]} 15... Bxd5 {[%clk 0:07:38.2]} 16. Qxd5 {[%clk
0:08:22.5]} 16... Qxd5 {[%clk 0:07:16.4]} 17. Rxd5 {[%clk 0:08:24.4]} 17... Rxc2
{[%clk 0:07:17.2]} 18. Rd7 {[%clk 0:08:24.4]} 18... Bf6 {[%clk 0:07:17.7]} 19.
Rxb7 {[%clk 0:07:53.8]} 19... Bxb2 {[%clk 0:06:56.1]} 20. Ra7 {[%clk 0:07:26.8]}
20... Bd4 {[%clk 0:05:47.8]} 21. Rxa6 {[%clk 0:07:26.3]} 21... h5 {[%clk
0:05:41.8]} 22. a4 {[%clk 0:06:54.6]} 22... Ra2 {[%clk 0:05:26.8]} 23. a5 {[%clk
0:06:41]} 23... Re8 {[%clk 0:04:44.3]} 24. Rd6 {[%clk 0:04:51.4]} 24... Bc5
{[%clk 0:04:38]} 25. Rd5 {[%clk 0:04:51.7]} 25... Rxa5 {[%clk 0:04:23.2]} 26.
Rfd1 {[%clk 0:04:47.9]} 26... Bb6 {[%clk 0:04:03.5]} 27. Rxa5 {[%clk 0:04:46.6]}
27... Bxa5 {[%clk 0:04:03.5]} 28. Rd5 {[%clk 0:04:48.2]} 28... Bb6 {[%clk
0:03:57.3]} 29. Rb5 {[%clk 0:04:37.4]} 29... Bd4 {[%clk 0:03:35.4]} 30. Rd5
{[%clk 0:04:36.1]} 30... Bb6 {[%clk 0:03:34.1]} 31. Rxh5 {[%clk 0:03:36.4]}
31... Re1+ {[%clk 0:03:02.1]} 32. Kg2 {[%clk 0:03:37]} 32... Re2 {[%clk
0:03:03.8]} 33. h4 {[%clk 0:03:06.6]} 33... Rxf2+ {[%clk 0:03:01.6]} 34. Kh3
{[%clk 0:03:08]} 34... Bd4 {[%clk 0:02:31.5]} 35. Ra5 {[%clk 0:02:53.5]} 35...
Bf6 {[%clk 0:02:19.3]} 36. Ra8+ {[%clk 0:02:50.4]} 36... Kh7 {[%clk 0:02:18.2]}
37. Rf8 {[%clk 0:02:50.3]} 37... Kg6 {[%clk 0:02:14.6]} 38. Kg4 {[%clk 0:02:50]}
38... Rh2 {[%clk 0:02:02.4]} 39. Rh8 {[%clk 0:02:38.1]} 39... Bc3 {[%clk
0:01:27.9]} 40. h5+ {[%clk 0:02:31.4]} 40... Kf6 {[%clk 0:01:28.8]} 41. Re8
{[%clk 0:02:31.4]} 41... g6 {[%clk 0:01:04.6]} 42. h6 {[%clk 0:02:27.2]} 42...
Rh5 {[%clk 0:00:58.4]} 43. Re2 {[%clk 0:01:43.7]} 43... Bd4 {[%clk 0:00:49.9]}
44. Re1 {[%clk 0:01:09.3]} 44... Bc3 {[%clk 0:00:46.2]} 45. Re8 {[%clk
0:00:36.3]} 45... Bd4 {[%clk 0:00:44.7]} 46. Bd2 {[%clk 0:00:34.9]} 46... Bb2
{[%clk 0:00:30.4]} 47. Be3 {[%clk 0:00:20.6]} 47... Bc3 {[%clk 0:00:30.3]} 48.
Kf3 {[%clk 0:00:15.9]} 48... Rh1 {[%clk 0:00:08.7]} 49. Ke4 {[%clk 0:00:14.2]}
49... g5 {[%clk 0:00:08.6]} 50. Rc8 {[%clk 0:00:11.3]} 50... Bb2 {[%clk
0:00:07.6]} 51. Rc6+ {[%clk 0:00:11.8]} 51... Ke7 {[%clk 0:00:08.3]} 52. Bxg5+
{[%clk 0:00:13.2]} 52... Kd7 {[%clk 0:00:08.4]} 53. Rb6 {[%clk 0:00:12.8]} 53...
Bc1 {[%clk 0:00:08]} 54. Bxc1 {[%clk 0:00:09.9]} 54... Rxc1 {[%clk 0:00:08.9]}
55. Ke5 {[%clk 0:00:09.6]} 55... Ke7 {[%clk 0:00:07.3]} 56. Rb7+ {[%clk
0:00:09]} 56... Kf8 {[%clk 0:00:05.5]} 57. Rb8+ {[%clk 0:00:10.5]} 57... Ke7
{[%clk 0:00:06.6]} 58. h7 {[%clk 0:00:12.1]} 1-0

[Event "GrandPrix_29.05"]
[Site "Chess.com"]
[Date "2020.05.29"]
[Round "2"]
[White "PeshkaTheGreat"]
[Black "VojtechPlat"]
[Result "1/2-1/2"]
[WhiteElo "2244"]
[BlackElo "2481"]
[TimeControl "600+2"]
[EndTime "9:58:27 PDT"]
[Termination "Game drawn by repetition"]

1. e4 {[%clk 0:10:01.9]} 1... d6 {[%clk 0:09:59.6]} 2. d4 {[%clk 0:10:00.7]}
2... Nf6 {[%clk 0:10:00.3]} 3. Nc3 {[%clk 0:10:00.7]} 3... e5 {[%clk 0:10:01.3]}
4. Nge2 {[%clk 0:09:54.6]} 4... exd4 {[%clk 0:10:01.4]} 5. Nxd4 {[%clk
0:09:54.9]} 5... Be7 {[%clk 0:10:02.2]} 6. Be2 {[%clk 0:09:33.3]} 6... O-O
{[%clk 0:10:02.7]} 7. Be3 {[%clk 0:09:34.3]} 7... Nc6 {[%clk 0:10:00.7]} 8. O-O
{[%clk 0:09:34.5]} 8... Re8 {[%clk 0:10:01.4]} 9. f4 {[%clk 0:09:25.6]} 9... Bf8
{[%clk 0:10:01.6]} 10. Bf3 {[%clk 0:09:26.5]} 10... Bd7 {[%clk 0:09:54]} 11. a3
{[%clk 0:09:19.9]} 11... Na5 {[%clk 0:09:34.7]} 12. Qd3 {[%clk 0:09:13.8]} 12...
c5 {[%clk 0:09:29.1]} 13. Nde2 {[%clk 0:09:03.7]} 13... Ng4 {[%clk 0:09:08.7]}
14. Bd2 {[%clk 0:08:26.5]} 14... b5 {[%clk 0:08:22.5]} 15. Be1 {[%clk
0:05:13.2]} 15... Nc4 {[%clk 0:07:02.9]} 16. Bxg4 {[%clk 0:03:37.7]} 16... Bxg4
{[%clk 0:07:02.6]} 17. b3 {[%clk 0:03:32.7]} 17... Nb6 {[%clk 0:06:37.3]} 18.
Qxb5 {[%clk 0:03:09.4]} 18... d5 {[%clk 0:06:21.8]} 19. e5 {[%clk 0:02:57.8]}
19... d4 {[%clk 0:05:54]} 20. Ne4 {[%clk 0:02:52.9]} 20... d3 {[%clk 0:05:04.4]}
21. N2g3 {[%clk 0:02:42.3]} 21... dxc2 {[%clk 0:04:54.1]} 22. h3 {[%clk
0:02:10.7]} 22... Bd1 {[%clk 0:04:34.5]} 23. Bf2 {[%clk 0:02:05.4]} 23... c4
{[%clk 0:03:48.1]} 24. Nc3 {[%clk 0:01:29.3]} 24... Bxa3 {[%clk 0:03:10.6]} 25.
Rfxd1 {[%clk 0:00:40.5]} 25... cxd1=Q+ {[%clk 0:03:11]} 26. Rxd1 {[%clk
0:00:42.4]} 26... Qh4 {[%clk 0:02:15.4]} 27. Nge2 {[%clk 0:00:33.9]} 27... Qe7
{[%clk 0:01:38.7]} 28. bxc4 {[%clk 0:00:33.7]} 28... Rec8 {[%clk 0:01:38.6]} 29.
Nd5 {[%clk 0:00:25.2]} 29... Nxd5 {[%clk 0:01:14]} 30. cxd5 {[%clk 0:00:27.1]}
30... Bc5 {[%clk 0:01:14.4]} 31. d6 {[%clk 0:00:26.7]} 31... Bxf2+ {[%clk
0:01:14.4]} 32. Kxf2 {[%clk 0:00:28.6]} 32... Qe6 {[%clk 0:01:09.9]} 33. Nd4
{[%clk 0:00:23.6]} 33... Qh6 {[%clk 0:01:02]} 34. Ne2 {[%clk 0:00:08.1]} 34...
g5 {[%clk 0:00:58.3]} 35. f5 {[%clk 0:00:06.5]} 35... Qh4+ {[%clk 0:00:52.3]}
36. Kg1 {[%clk 0:00:07.2]} 36... Qe4 {[%clk 0:00:53.5]} 37. Ng3 {[%clk
0:00:03.7]} 37... Qf4 {[%clk 0:00:51]} 38. Nh5 {[%clk 0:00:04.5]} 38... Qxf5
{[%clk 0:00:50]} 39. Nf6+ {[%clk 0:00:06.4]} 39... Kg7 {[%clk 0:00:50.7]} 40. d7
{[%clk 0:00:07.7]} 40... Rd8 {[%clk 0:00:51.5]} 41. Qd5 {[%clk 0:00:08.6]} 41...
a5 {[%clk 0:00:44.3]} 42. Rf1 {[%clk 0:00:08.6]} 42... Qg6 {[%clk 0:00:44.6]}
43. Ne8+ {[%clk 0:00:09.4]} 43... Rxe8 {[%clk 0:00:41.9]} 44. dxe8=Q {[%clk
0:00:10]} 44... Rxe8 {[%clk 0:00:42.4]} 45. Qxa5 {[%clk 0:00:11.2]} 45... Qe6
{[%clk 0:00:41.4]} 46. Re1 {[%clk 0:00:08.4]} 46... Qf5 {[%clk 0:00:41.8]} 47.
Qd2 {[%clk 0:00:08.7]} 47... Re6 {[%clk 0:00:42.5]} 48. Qe3 {[%clk 0:00:08.1]}
48... h6 {[%clk 0:00:41.8]} 49. Kh2 {[%clk 0:00:07.5]} 49... Kg6 {[%clk
0:00:41.9]} 50. Re2 {[%clk 0:00:08.3]} 50... Qf4+ {[%clk 0:00:42.9]} 51. Qxf4
{[%clk 0:00:09.1]} 51... gxf4 {[%clk 0:00:44.3]} 52. Kg1 {[%clk 0:00:10]} 52...
Kf5 {[%clk 0:00:45.2]} 53. Kf2 {[%clk 0:00:10.9]} 53... Rxe5 {[%clk 0:00:46.6]}
54. Ra2 {[%clk 0:00:12.6]} 54... Rb5 {[%clk 0:00:46.7]} 55. Rc2 {[%clk 0:00:13]}
55... f6 {[%clk 0:00:47.6]} 56. Ra2 {[%clk 0:00:14.2]} 56... Kg5 {[%clk
0:00:48.8]} 57. Rc2 {[%clk 0:00:15]} 57... h5 {[%clk 0:00:50.1]} 58. Ra2 {[%clk
0:00:16.4]} 58... h4 {[%clk 0:00:51.5]} 59. Rc2 {[%clk 0:00:17.5]} 59... Rb3
{[%clk 0:00:52.6]} 60. Ra2 {[%clk 0:00:18.7]} 60... Rg3 {[%clk 0:00:52.4]} 61.
Ra8 {[%clk 0:00:11.7]} 61... f3 {[%clk 0:00:53.3]} 62. gxf3 {[%clk 0:00:05.5]}
62... Rxh3 {[%clk 0:00:54.4]} 63. Rg8+ {[%clk 0:00:05.6]} 63... Kf4 {[%clk
0:00:49.2]} 64. Rg4+ {[%clk 0:00:06.5]} 64... Kf5 {[%clk 0:00:49.8]} 65. Kg2
{[%clk 0:00:07.6]} 65... Rg3+ {[%clk 0:00:50.5]} 66. Rxg3 {[%clk 0:00:08.9]}
66... hxg3 {[%clk 0:00:52]} 67. Kxg3 {[%clk 0:00:10.8]} 67... Kg5 {[%clk
0:00:53.4]} 68. f4+ {[%clk 0:00:11.6]} 68... Kf5 {[%clk 0:00:54.5]} 69. Kf3
{[%clk 0:00:13.5]} 69... Ke6 {[%clk 0:00:55.7]} 70. Ke4 {[%clk 0:00:14.6]} 70...
f5+ {[%clk 0:00:55.5]} 71. Kd4 {[%clk 0:00:14.1]} 71... Kd6 {[%clk 0:00:56.8]}
72. Kc4 {[%clk 0:00:14.5]} 72... Kc6 {[%clk 0:00:58.2]} 73. Kd4 {[%clk 0:00:15]}
73... Kd6 {[%clk 0:00:59.5]} 74. Kc4 {[%clk 0:00:16.7]} 74... Kc6 {[%clk
0:01:00.7]} 75. Kd4 {[%clk 0:00:17.8]} 75... Kd6 {[%clk 0:01:02.1]} 1/2-1/2

[Event "GrandPrix_29.05"]
[Site "Chess.com"]
[Date "2020.05.29"]
[Round "2"]
[White "AliKa2810"]
[Black "Pash2015"]
[Result "1-0"]
[WhiteElo "2262"]
[BlackElo "2178"]
[TimeControl "600+2"]
[EndTime "9:58:27 PDT"]
[Termination "AliKa2810 won by resignation"]

1. d4 {[%clk 0:10:01.9]} 1... d5 {[%clk 0:09:59.3]} 2. c4 {[%clk 0:10:00.8]}
2... e6 {[%clk 0:09:58.2]} 3. Nc3 {[%clk 0:09:59.4]} 3... Nf6 {[%clk 0:09:58.5]}
4. cxd5 {[%clk 0:09:57.2]} 4... Nxd5 {[%clk 0:10:00.4]} 5. e4 {[%clk 0:09:57.6]}
5... Nxc3 {[%clk 0:10:01.3]} 6. bxc3 {[%clk 0:09:59.5]} 6... c5 {[%clk
0:10:02.7]} 7. Rb1 {[%clk 0:10:00.2]} 7... cxd4 {[%clk 0:10:03.7]} 8. cxd4
{[%clk 0:10:01.3]} 8... Be7 {[%clk 0:10:04.8]} 9. Nf3 {[%clk 0:09:54.4]} 9...
O-O {[%clk 0:10:05.5]} 10. Bd3 {[%clk 0:09:37]} 10... b6 {[%clk 0:10:05.7]} 11.
O-O {[%clk 0:09:36.4]} 11... Bb7 {[%clk 0:10:04.4]} 12. Re1 {[%clk 0:09:29.6]}
12... Nc6 {[%clk 0:10:00.3]} 13. Bb2 {[%clk 0:08:55.6]} 13... Nb4 {[%clk
0:09:57]} 14. Bc4 {[%clk 0:08:25.5]} 14... Rc8 {[%clk 0:09:52]} 15. Rc1 {[%clk
0:08:24.1]} 15... Ba6 {[%clk 0:09:44.6]} 16. Bxa6 {[%clk 0:08:06.4]} 16... Nxa6
{[%clk 0:09:46.3]} 17. a3 {[%clk 0:07:38.6]} 17... Qd7 {[%clk 0:09:34.5]} 18.
Qe2 {[%clk 0:07:23.4]} 18... Qa4 {[%clk 0:09:30.1]} 19. h4 {[%clk 0:07:06.2]}
19... h6 {[%clk 0:09:27.5]} 20. h5 {[%clk 0:06:27.9]} 20... Rfd8 {[%clk
0:09:23.5]} 21. g3 {[%clk 0:05:40.6]} 21... Qa5 {[%clk 0:08:59.3]} 22. Ne5
{[%clk 0:05:32.5]} 22... Qa4 {[%clk 0:08:38.4]} 23. Qf3 {[%clk 0:05:29.1]} 23...
Bf6 {[%clk 0:08:34.9]} 24. Nxf7 {[%clk 0:05:02.4]} 24... Rxc1 {[%clk 0:07:27.3]}
25. Rxc1 {[%clk 0:04:50.3]} 25... Rf8 {[%clk 0:07:20]} 26. e5 {[%clk 0:04:19.1]}
26... Bg5 {[%clk 0:07:10.9]} 27. Rc3 {[%clk 0:03:16.5]} 27... Qd7 {[%clk
0:06:57.1]} 28. Qe2 {[%clk 0:02:28.2]} 28... Qxf7 {[%clk 0:06:48.3]} 29. f4
{[%clk 0:02:28.7]} 29... Nc7 {[%clk 0:06:01.7]} 30. fxg5 {[%clk 0:02:25.7]}
30... Nd5 {[%clk 0:06:01.6]} 31. Rc1 {[%clk 0:02:23.9]} 31... hxg5 {[%clk
0:05:52.5]} 32. Rf1 {[%clk 0:02:15.4]} 32... Qe8 {[%clk 0:05:20.7]} 33. Bc1
{[%clk 0:01:58.8]} 33... Rxf1+ {[%clk 0:04:59.3]} 34. Kxf1 {[%clk 0:01:59.3]}
34... Qa4 {[%clk 0:04:57.1]} 35. Qg4 {[%clk 0:01:40.4]} 35... Qc4+ {[%clk
0:04:50.8]} 36. Kg2 {[%clk 0:01:40.5]} 36... Qc2+ {[%clk 0:02:04.1]} 37. Kh3
{[%clk 0:01:40.6]} 37... Nf4+ {[%clk 0:01:29.8]} 38. Bxf4 {[%clk 0:00:38.2]}
38... gxf4 {[%clk 0:01:27.4]} 39. Qxe6+ {[%clk 0:00:39.3]} 39... Kf8 {[%clk
0:01:12.7]} 40. gxf4 {[%clk 0:00:38.6]} 40... Qd3+ {[%clk 0:01:08.8]} 41. Kg4
{[%clk 0:00:39.8]} 41... Qd1+ {[%clk 0:01:04.4]} 42. Kg5 {[%clk 0:00:39.9]}
42... Qg1+ {[%clk 0:01:04.9]} 43. Qg4 {[%clk 0:00:31.1]} 43... Qxd4 {[%clk
0:01:03.9]} 44. Qc8+ {[%clk 0:00:31.5]} 44... Kf7 {[%clk 0:01:01.8]} 45. Qb7+
{[%clk 0:00:30.6]} 45... Kg8 {[%clk 0:00:59.9]} 46. Qxa7 {[%clk 0:00:19.5]}
46... Qg1+ {[%clk 0:00:52]} 47. Kf5 {[%clk 0:00:20.4]} 47... Qb1+ {[%clk
0:00:52.2]} 48. Ke6 {[%clk 0:00:21.7]} 48... Qb3+ {[%clk 0:00:50.7]} 49. Kd6
{[%clk 0:00:22.9]} 49... Kh7 {[%clk 0:00:47]} 50. e6 {[%clk 0:00:13.2]} 50...
Qd3+ {[%clk 0:00:43.4]} 51. Kc7 {[%clk 0:00:14.2]} 51... Qc4+ {[%clk 0:00:42]}
52. Kd7 {[%clk 0:00:15]} 52... Qd5+ {[%clk 0:00:42.7]} 53. Ke7 {[%clk
0:00:16.2]} 53... Qc5+ {[%clk 0:00:43.9]} 54. Kf7 {[%clk 0:00:17.1]} 54... Qf5+
{[%clk 0:00:44.3]} 55. Ke7 {[%clk 0:00:18.2]} 55... Qc5+ {[%clk 0:00:45.1]} 56.
Ke8 {[%clk 0:00:19.5]} 56... Qxh5+ {[%clk 0:00:43.6]} 57. Kd8 {[%clk 0:00:20.6]}
57... Qd5+ {[%clk 0:00:43.9]} 58. Qd7 {[%clk 0:00:21.8]} 58... Qa8+ {[%clk
0:00:42.9]} 59. Kc7 {[%clk 0:00:22.6]} 59... Qa7+ {[%clk 0:00:41.6]} 60. Kc6
{[%clk 0:00:24]} 60... Qa8+ {[%clk 0:00:38.2]} 61. Kxb6 {[%clk 0:00:24.8]} 61...
Qxa3 {[%clk 0:00:38.6]} 62. e7 {[%clk 0:00:21.6]} 62... Qb4+ {[%clk 0:00:38.3]}
63. Kc7 {[%clk 0:00:22.6]} 63... Qxf4+ {[%clk 0:00:38.5]} 64. Qd6 {[%clk
0:00:21.7]} 64... Qc4+ {[%clk 0:00:38.2]} 65. Kd8 {[%clk 0:00:22]} 65... Qh4
{[%clk 0:00:37.4]} 66. Qd3+ {[%clk 0:00:22.5]} 66... Kh8 {[%clk 0:00:36.8]} 67.
Qd5 {[%clk 0:00:16.2]} 67... Qf6 {[%clk 0:00:33]} 68. Kd7 {[%clk 0:00:16.7]} 1-0

[Event "GrandPrix_29.05"]
[Site "Chess.com"]
[Date "2020.05.29"]
[Round "2"]
[White "Angry_Twin"]
[Black "Andrei_Belozerov"]
[Result "0-1"]
[WhiteElo "2308"]
[BlackElo "2465"]
[TimeControl "600+2"]
[EndTime "9:58:28 PDT"]
[Termination "Andrei_Belozerov won by resignation"]

1. e4 {[%clk 0:10:01.9]} 1... c5 {[%clk 0:09:59.9]} 2. Nf3 {[%clk 0:09:57.3]}
2... d6 {[%clk 0:10:00.8]} 3. d4 {[%clk 0:09:58.2]} 3... cxd4 {[%clk 0:10:02]}
4. Nxd4 {[%clk 0:10:00.1]} 4... Nf6 {[%clk 0:10:03.3]} 5. Nc3 {[%clk 0:10:01.3]}
5... a6 {[%clk 0:10:04.9]} 6. Be3 {[%clk 0:10:02.9]} 6... e5 {[%clk 0:10:05.4]}
7. Nb3 {[%clk 0:10:01.8]} 7... Be6 {[%clk 0:10:05.1]} 8. f3 {[%clk 0:10:02.3]}
8... h5 {[%clk 0:10:05.5]} 9. Qd2 {[%clk 0:10:02.7]} 9... Nbd7 {[%clk
0:10:05.1]} 10. Nd5 {[%clk 0:10:03.1]} 10... Bxd5 {[%clk 0:10:01.6]} 11. exd5
{[%clk 0:10:05]} 11... g6 {[%clk 0:10:01.9]} 12. O-O-O {[%clk 0:10:05.5]} 12...
Nb6 {[%clk 0:09:58.5]} 13. Kb1 {[%clk 0:10:05.8]} 13... Nbxd5 {[%clk 0:09:29.4]}
14. Bg5 {[%clk 0:10:05.1]} 14... Be7 {[%clk 0:09:29.6]} 15. c4 {[%clk
0:09:56.9]} 15... Nf4 {[%clk 0:09:20.2]} 16. Bxf4 {[%clk 0:09:24.3]} 16... exf4
{[%clk 0:09:18.8]} 17. Qxf4 {[%clk 0:09:24]} 17... O-O {[%clk 0:09:18.4]} 18.
Bd3 {[%clk 0:09:20.6]} 18... Re8 {[%clk 0:09:11.5]} 19. g4 {[%clk 0:09:01.5]}
19... Bf8 {[%clk 0:08:45]} 20. g5 {[%clk 0:07:35.7]} 20... Nd7 {[%clk
0:08:09.3]} 21. Be4 {[%clk 0:07:36.5]} 21... Qc7 {[%clk 0:07:15.2]} 22. Rc1
{[%clk 0:06:17.7]} 22... Re5 {[%clk 0:06:35.6]} 23. Rhd1 {[%clk 0:06:12.7]}
23... Rae8 {[%clk 0:06:03.4]} 24. h4 {[%clk 0:06:13.8]} 24... Bg7 {[%clk
0:05:50.2]} 25. Qd2 {[%clk 0:05:39.7]} 25... R5e6 {[%clk 0:05:06.3]} 26. Qd5
{[%clk 0:05:22.2]} 26... Nc5 {[%clk 0:04:38.3]} 27. Nxc5 {[%clk 0:05:08.8]}
27... dxc5 {[%clk 0:04:38.7]} 28. Rc2 {[%clk 0:05:06.5]} 28... Rb6 {[%clk
0:03:19.8]} 29. Qd7 {[%clk 0:04:43.5]} 29... Qe5 {[%clk 0:02:58]} 30. Rdd2
{[%clk 0:04:43.1]} 30... Rb4 {[%clk 0:02:23.9]} 31. a3 {[%clk 0:04:25.1]} 31...
Rb3 {[%clk 0:02:24.2]} 32. Ka2 {[%clk 0:04:24.5]} 32... Re3 {[%clk 0:02:23]} 33.
Qxb7 {[%clk 0:03:58.7]} 33... Rb8 {[%clk 0:02:15.3]} 34. Qd5 {[%clk 0:03:58.3]}
34... Reb3 {[%clk 0:02:05]} 35. Qxe5 {[%clk 0:03:43.7]} 35... Bxe5 {[%clk
0:02:05.2]} 36. Rd8+ {[%clk 0:03:27.9]} 36... Rxd8 {[%clk 0:01:58.8]} 37. Kxb3
{[%clk 0:03:29.8]} 37... Rb8+ {[%clk 0:01:59.7]} 38. Ka2 {[%clk 0:03:22.6]}
38... a5 {[%clk 0:01:56.3]} 39. Re2 {[%clk 0:02:59.1]} 39... Bg3 {[%clk
0:01:49.3]} 40. Bd5 {[%clk 0:02:31.3]} 40... Kf8 {[%clk 0:01:45.2]} 41. f4
{[%clk 0:01:34.9]} 41... Bxh4 {[%clk 0:01:36.5]} 42. Rg2 {[%clk 0:01:15.1]}
42... Be1 {[%clk 0:01:33]} 43. f5 {[%clk 0:00:55.5]} 43... gxf5 {[%clk
0:01:31.1]} 44. g6 {[%clk 0:00:56.8]} 44... h4 {[%clk 0:00:52.1]} 45. gxf7
{[%clk 0:00:49.9]} 45... Bg3 {[%clk 0:00:53.1]} 46. Re2 {[%clk 0:00:45.9]} 46...
h3 {[%clk 0:00:22.9]} 47. Re3 {[%clk 0:00:26]} 47... f4 {[%clk 0:00:21.1]} 48.
Re6 {[%clk 0:00:27]} 48... Rd8 {[%clk 0:00:19.7]} 49. Rh6 {[%clk 0:00:23.9]}
49... Rxd5 {[%clk 0:00:11.5]} 50. cxd5 {[%clk 0:00:25]} 50... h2 {[%clk
0:00:11.5]} 51. d6 {[%clk 0:00:25.9]} 51... Kxf7 {[%clk 0:00:12.4]} 52. Rh7+
{[%clk 0:00:08.7]} 52... Ke8 {[%clk 0:00:13]} 53. Kb3 {[%clk 0:00:06.6]} 53...
f3 {[%clk 0:00:14.2]} 54. Kc4 {[%clk 0:00:04.9]} 54... f2 {[%clk 0:00:15.1]} 55.
Kd5 {[%clk 0:00:04.9]} 55... f1=Q {[%clk 0:00:15.6]} 56. Rh8+ {[%clk 0:00:05.1]}
56... Kd7 {[%clk 0:00:13.9]} 57. Rh7+ {[%clk 0:00:06.1]} 57... Kc8 {[%clk
0:00:14.6]} 58. Rh8+ {[%clk 0:00:07.6]} 58... Kb7 {[%clk 0:00:15.6]} 59. Rh7+
{[%clk 0:00:09]} 59... Kb6 {[%clk 0:00:16.4]} 60. Ke6 {[%clk 0:00:08.6]} 60...
h1=Q {[%clk 0:00:14.8]} 61. Rxh1 {[%clk 0:00:09.8]} 61... Qxh1 {[%clk
0:00:15.6]} 62. d7 {[%clk 0:00:11.7]} 62... Qc6+ {[%clk 0:00:16.1]} 63. Ke7
{[%clk 0:00:12.8]} 63... Bh4+ {[%clk 0:00:16.9]} 0-1

[Event "GrandPrix_29.05"]
[Site "Chess.com"]
[Date "2020.05.29"]
[Round "2"]
[White "gross-aleks"]
[Black "SacrificeGod"]
[Result "0-1"]
[WhiteElo "2071"]
[BlackElo "2324"]
[TimeControl "600+2"]
[EndTime "9:58:29 PDT"]
[Termination "SacrificeGod won by resignation"]

1. c4 {[%clk 0:09:57.5]} 1... e5 {[%clk 0:09:59.1]} 2. g3 {[%clk 0:09:57.7]}
2... Nc6 {[%clk 0:09:58.7]} 3. Bg2 {[%clk 0:09:58.3]} 3... g6 {[%clk 0:09:59.8]}
4. Nc3 {[%clk 0:09:54.4]} 4... Bg7 {[%clk 0:10:00.9]} 5. Rb1 {[%clk 0:09:54.5]}
5... d6 {[%clk 0:10:02]} 6. b4 {[%clk 0:09:54.1]} 6... f5 {[%clk 0:10:02.9]} 7.
b5 {[%clk 0:09:42.4]} 7... Nce7 {[%clk 0:09:52.5]} 8. a4 {[%clk 0:09:22.3]} 8...
Rb8 {[%clk 0:09:51.3]} 9. a5 {[%clk 0:09:21.3]} 9... Nf6 {[%clk 0:09:41]} 10. d3
{[%clk 0:09:20.4]} 10... O-O {[%clk 0:09:40.4]} 11. Nf3 {[%clk 0:09:20.2]} 11...
h6 {[%clk 0:09:38.9]} 12. O-O {[%clk 0:09:19]} 12... g5 {[%clk 0:09:12.6]} 13.
Nd2 {[%clk 0:08:14.8]} 13... f4 {[%clk 0:08:59.7]} 14. Nde4 {[%clk 0:08:10.8]}
14... b6 {[%clk 0:08:49.3]} 15. Nxf6+ {[%clk 0:08:09.6]} 15... Bxf6 {[%clk
0:08:44.5]} 16. axb6 {[%clk 0:07:55.6]} 16... axb6 {[%clk 0:08:43.5]} 17. e3
{[%clk 0:07:56.5]} 17... g4 {[%clk 0:08:07.3]} 18. f3 {[%clk 0:06:48.9]} 18...
fxg3 {[%clk 0:07:41]} 19. hxg3 {[%clk 0:06:47.6]} 19... gxf3 {[%clk 0:06:57]}
20. Qxf3 {[%clk 0:06:42.4]} 20... Bg7 {[%clk 0:06:48.9]} 21. Qh5 {[%clk
0:06:34.4]} 21... Rxf1+ {[%clk 0:05:01]} 22. Bxf1 {[%clk 0:06:24.6]} 22... Nf5
{[%clk 0:04:51.3]} 23. Kh2 {[%clk 0:05:30.3]} 23... Be6 {[%clk 0:02:09]} 24. Bg2
{[%clk 0:04:42.1]} 24... Qd7 {[%clk 0:01:22.3]} 25. Nd5 {[%clk 0:03:26.2]} 25...
Rf8 {[%clk 0:00:51.8]} 26. e4 {[%clk 0:02:01.2]} 26... Nd4 {[%clk 0:00:49.6]}
27. Bxh6 {[%clk 0:01:55.8]} 27... Bxd5 {[%clk 0:00:18.9]} 28. exd5 {[%clk
0:01:05.3]} 28... Rf2 {[%clk 0:00:19]} 29. Kg1 {[%clk 0:00:36.4]} 29... Rf5
{[%clk 0:00:10.5]} 30. Qg6 {[%clk 0:00:34.6]} 30... Ne2+ {[%clk 0:00:10.9]} 31.
Kh2 {[%clk 0:00:31.7]} 31... Rf6 {[%clk 0:00:05.8]} 32. Qxg7+ {[%clk 0:00:31.1]}
32... Qxg7 {[%clk 0:00:06.3]} 33. Bxg7 {[%clk 0:00:33]} 33... Kxg7 {[%clk
0:00:07.5]} 34. Re1 {[%clk 0:00:16.9]} 34... Nd4 {[%clk 0:00:05.8]} 35. Re3
{[%clk 0:00:16.7]} 35... Nc2 {[%clk 0:00:05.7]} 36. Re2 {[%clk 0:00:16.2]} 36...
Nb4 {[%clk 0:00:04.9]} 37. Be4 {[%clk 0:00:15.9]} 37... Rf1 {[%clk 0:00:03]} 38.
Kg2 {[%clk 0:00:16.7]} 38... Rb1 {[%clk 0:00:03.7]} 39. Kf3 {[%clk 0:00:16.6]}
39... Rb3 {[%clk 0:00:04.9]} 40. Rh2 {[%clk 0:00:11]} 40... Nxd3 {[%clk
0:00:05.4]} 41. Kg4 {[%clk 0:00:11.3]} 41... Nc5 {[%clk 0:00:05.6]} 42. Bf5
{[%clk 0:00:12]} 42... Rc3 {[%clk 0:00:05.1]} 43. Kg5 {[%clk 0:00:10.3]} 43...
Rxg3+ {[%clk 0:00:06]} 44. Kh4 {[%clk 0:00:09.1]} 44... Rf3 {[%clk 0:00:06.4]}
45. Kg5 {[%clk 0:00:09.4]} 45... Rg3+ {[%clk 0:00:07.4]} 46. Kh4 {[%clk
0:00:10.3]} 46... Rf3 {[%clk 0:00:08.6]} 47. Kg4 {[%clk 0:00:11.3]} 47... Rf4+
{[%clk 0:00:09.8]} 48. Kg5 {[%clk 0:00:13]} 48... Ne4+ {[%clk 0:00:11]} 49. Bxe4
{[%clk 0:00:12]} 49... Rxe4 {[%clk 0:00:12.4]} 50. Kf5 {[%clk 0:00:13.9]} 50...
Rf4+ {[%clk 0:00:13]} 51. Ke6 {[%clk 0:00:15.8]} 51... Rxc4 {[%clk 0:00:14.2]}
52. Rg2+ {[%clk 0:00:15.3]} 52... Kh6 {[%clk 0:00:15.3]} 53. Rf2 {[%clk
0:00:16.1]} 53... e4 {[%clk 0:00:16.5]} 54. Kf6 {[%clk 0:00:15.8]} 54... Kh5
{[%clk 0:00:17.2]} 55. Kf5 {[%clk 0:00:16.5]} 55... Kh6 {[%clk 0:00:18.5]} 56.
Kf6 {[%clk 0:00:17.4]} 56... Kh5 {[%clk 0:00:20]} 57. Kf5 {[%clk 0:00:18.4]}
57... e3 {[%clk 0:00:21.5]} 58. Re2 {[%clk 0:00:16.3]} 58... Kh4 {[%clk
0:00:21.3]} 59. Rxe3 {[%clk 0:00:17]} 59... Rc5 {[%clk 0:00:22]} 60. Ke6 {[%clk
0:00:16.1]} 60... Rxb5 {[%clk 0:00:23.2]} 61. Rc3 {[%clk 0:00:09.5]} 61... Rc5
{[%clk 0:00:24.5]} 62. Rxc5 {[%clk 0:00:10.4]} 62... bxc5 {[%clk 0:00:25.2]} 63.
Kd7 {[%clk 0:00:11.2]} 63... c4 {[%clk 0:00:26.6]} 64. Kxc7 {[%clk 0:00:13.1]}
64... c3 {[%clk 0:00:28.2]} 65. Kxd6 {[%clk 0:00:15]} 65... c2 {[%clk
0:00:29.8]} 66. Ke7 {[%clk 0:00:16.9]} 66... c1=Q {[%clk 0:00:31.1]} 67. d6
{[%clk 0:00:18.8]} 67... Qg5+ {[%clk 0:00:31.9]} 0-1